Cogmind - Beta 15 @@@ ROGUE MODE // 2025.06.01 @ 14:10:46 // Winter2019/RPGLIKE Player: Jack Result: Destroyed by Y-45 Defender with Beam Rifle Performance ------------- Evolutions (2) 1000 Regions Visited (5) 1000 Robots Destroyed (25) 125 Value Destroyed (819) 819 Prototype IDs (23) 460 Alien Tech Used (0) 0 Bonus (380) 380 TOTAL SCORE: 3784 Bonus ------- Follower Combat Kills 80 Aligned with FarCom 300 Cogmind --------- Core Integrity 0/600 Matter 270/300 Energy 10/100 System Corruption 0% Temperature Warning (362) Movement Flying (32) Location -8/Materials Parts ------- > --- POWER (1) -------- (None) > --- PROPULSION (2) --- Cesium-ion Thruster Cesium-ion Thruster > --- UTILITY (4) ------ Backup Plating I Hacking Suite > --- WEAPON (4) ------- EM Pulse Gun Shock Rifle > --- INVENTORY (3) ---- EM Shotgun EM Shotgun Field Lobotomy Kit (5) Peak State ------------ > --- POWER ------------ Light Ion Engine > --- PROPULSION ------- Cesium-ion Thruster Cesium-ion Thruster > --- UTILITY ---------- Backup Plating I Hacking Suite > --- WEAPON ----------- EM Pulse Gun EM Pulse Gun Heavy EM Pulse Gun Shock Rifle > --- INVENTORY -------- EM Shotgun EM Shotgun Field Lobotomy Kit [Rating: 19] Favorites ----------- Power Light Ion Engine Engine Light Ion Engine Propulsion Flight Unit Hover Unit Backup Propulsion I Flight Unit Flight Unit Utility Backup Plating I Hackware Hacking Suite Protection Backup Plating I Weapon EM Pulse Gun Energy Gun EM Pulse Gun Build | -11 -10 -10 -10 -9 -8 ------- Run | Yrd Mat Min Exi Min Mat Slots Evolved 7 | 2 . . . 2 3 Power . | . . . . . . Propulsion 1 | 1 . . . . . Utility 3 | . . . . 2 1 Weapon 3 | 1 . . . . 2 Parts Attached 13 | 2 1 . . 5 5 Power 1 | . . . . 1 . Engine 1 | . . . . 1 . Core . | . . . . . . Reactor . | . . . . . . Propulsion 4 | . 1 . . 1 2 Treads . | . . . . . . Leg . | . . . . . . Wheel . | . . . . . . Hover . | . . . . . . Flight 4 | . 1 . . 1 2 Utility 2 | . . . . 1 1 Device . | . . . . . . Storage . | . . . . . . Processor . | . . . . . . Hackware 1 | . . . . . 1 Protection 1 | . . . . 1 . Artifact . | . . . . . . Weapon 6 | 2 . . . 2 2 Energy Gun 6 | 2 . . . 2 2 Energy Cannon . | . . . . . . Ballistic Gun . | . . . . . . Ballistic Cannon . | . . . . . . Launcher . | . . . . . . Special Weapon . | . . . . . . Impact Weapon . | . . . . . . Slashing Weapon . | . . . . . . Piercing Weapon . | . . . . . . Special Melee Weapon . | . . . . . . Unidentified Prototypes . | . . . . . . Parts Lost 1 | . . . . . 1 Power 1 | . . . . . 1 Propulsion . | . . . . . . Utility . | . . . . . . Weapon . | . . . . . . Highest Loss Streak 1 | . . . . . 1 To Critical Strikes . | . . . . . . Average Backups 2 | 1 2 1 1 2 3 Power . | . 1 1 1 . . Propulsion . | . . . . . . Utility . | . . . . . . Weapon 1 | . 1 . . . 2 Tool/Special . | . . . . . . Unused Backups 2 | . . . . 1 1 Power 1 | . . . . 1 . Propulsion . | . . . . . . Utility . | . . . . . . Weapon . | . . . . . . Tool/Special 1 | . . . . . 1 Average Slot Usage (%) 67 | . 37 56 66 75 74 Engine 6 | . . . . 10 10 Flight 19 | . 12 16 16 24 21 Hackware 4 | . . . . . 9 Protection 11 | . 6 16 16 12 10 Energy Gun 23 | . 16 22 33 26 22 Peak Build Rating 19 | 2 4 4 5 11 19 Average Rating 9 | . 2 3 4 7 14 On Entrance 3 | . 1 3 4 5 9 Naked Turns . | . . . . . . Heaviest Build 14 | 2 3 5 5 10 14 Greatest Support 15 | 3 4 9 9 13 15 Greatest Overweight (x) . | . . . . . . Average Overweight (x) . | . . . . . . Largest Inventory Capacity 3 | 3 3 3 3 3 3 Average Capacity 2 | 2 3 3 3 3 3 Most Carried 3 | 2 2 3 3 3 3 Average Carried 2 | 1 1 2 2 2 3 Final Capacity 3 | 3 3 3 3 3 3 Final Carried 3 | 2 2 2 3 3 3 Class Distribution -------------------- 72% | Mutant 27% | Sprinter Dominant Class ---------------- Mutant | -10/Materials Mutant | -10/Mines Mutant | -10/Exiles Mutant | -9/Mines Sprinter | -8/Materials Resources | -11 -10 -10 -10 -9 -8 ----------- Run | Yrd Mat Min Exi Min Mat Matter Collected 355 | 220 . 20 . 30 85 Remotely . | . . . . . . Salvage Created 666 | . . 70 . 89 507 Parts 64 | . 3 9 . 10 42 Haulers Intercepted . | . . . . . . Recyclers Shooed . | . . . . . . Parts Field Recycled . | . . . . . . Retrieved Matter . | . . . . . . Parts Self-Destructed . | . . . . . . Prevented . | . . . . . . Kills | -11 -10 -10 -10 -9 -8 ------- Run | Yrd Mat Min Exi Min Mat Combat Hostiles Destroyed 20 | . 2 2 . 4 12 Guns 17 | . 1 2 . 4 10 AOE 2 | . 1 . . . 1 Classes Destroyed 9 | . 1 . . 1 7 Builder 2 | . . . . . 2 Operator 1 | . . . . . 1 Watcher 1 | . . . . . 1 Swarmer 2 | . . . . 2 . Cutter 3 | . . . . . 3 Grunt 11 | . 2 3 . 2 4 Brawler 1 | . . . . . 1 Sentry 2 | . . . . . 2 Hunter 2 | . . . . . 2 Best Kill Streak 5 | . 2 2 . 2 5 Combat Bots Only 3 | . 2 2 . 2 3 Max Kills in Single Turn 2 | . 1 1 . 1 2 Gunslinging . | . . . . . . Exploded 1 | . 1 . . . 1 Melee . | . . . . . . Uniques/NPCs Destroyed . | . . . . . . Combat | -11 -10 -10 -10 -9 -8 -------- Run | Yrd Mat Min Exi Min Mat Hostile Shots Fired 155 | . 35 12 . 23 85 Missed 74 | . 20 5 . 13 36 Hits 81 | . 15 7 . 10 49 Melee 12 | . . . . . 12 Projectile 69 | . 15 7 . 10 37 AOE 2 | . . . . . 2 Critical Strikes 4 | . . . . . 4 Damage Taken 1486 | . 198 130 . 164 994 Core 1161 | . 162 91 . 122 786 Absorbed by Shields . | . . . . . . Redirected to Core 862 | . 80 57 . 114 611 Core Remaining (%) 100 | 100 . . . 100 . Volleys Fired 95 | . 13 16 . 15 51 Largest 4 | . 1 1 . 2 4 Hottest 175 | . 40 40 . 80 175 Shots Fired 165 | . 13 16 . 30 106 Gun 165 | . 13 16 . 30 106 Cannon . | . . . . . . Launcher . | . . . . . . Special . | . . . . . . Kinetic . | . . . . . . Thermal . | . . . . . . Explosive . | . . . . . . Electromagnetic 165 | . 13 16 . 30 106 Robot Hit Streak 15 | . 6 8 . 7 15 Robot Miss Streak 6 | . 2 2 . 6 4 Penetration Max . | . . . . . . Secondary Targets 5 | . . . . 3 2 Max Gunslinging Chain 1 | . . . . 1 1 Shots Hit Robots 100 | . 9 14 . 15 62 Core Hits 52 | . 4 8 . 7 33 Critical Kills . | . . . . . . Critical Parts Destroyed . | . . . . . . Critical Strikes 2 | . . 1 . . 1 Corrupt 2 | . . 1 . . 1 Melee Attacks . | . . . . . . Impact . | . . . . . . Slashing . | . . . . . . Piercing . | . . . . . . Sneak Attacks . | . . . . . . Combat Hostiles . | . . . . . . Follow-up Attacks . | . . . . . . Damage Inflicted 1860 | . 227 297 . 187 1149 Guns 1479 | . 146 183 . 187 963 Cannons . | . . . . . . Explosions 381 | . 81 114 . . 186 Melee . | . . . . . . Ramming . | . . . . . . Kinetic . | . . . . . . Thermal 381 | . 81 114 . . 186 Explosive . | . . . . . . Electromagnetic 1479 | . 146 183 . 187 963 Impact . | . . . . . . Slashing . | . . . . . . Piercing . | . . . . . . Highest Corruption . | . . . . . . Average Corruption . | . . . . . . Corruption Purged . | . . . . . . Corruption Blocked . | . . . . . . Overload Shots . | . . . . . . Overflow Damage 24 | . . . . . 24 Projectiles . | . . . . . . Explosions 24 | . . . . . 24 Melee . | . . . . . . Knockbacks . | . . . . . . Impact . | . . . . . . Kinetic . | . . . . . . Secondary . | . . . . . . Self-Inflicted Damage 141 | . . 46 . . 95 Shots 3 | . . 1 . . 2 Rammed . | . . . . . . Targets Rammed . | . . . . . . Kicked . | . . . . . . Crushed . | . . . . . . Highest Temperature 353 | . 23 12 . 306 353 Average Temperature 120 | . 17 5 . 124 132 Received Heat Transfer 354 | . 114 48 . 75 117 Effects 1 | . . . . . 1 Energy Bleed 1 | . . . . . 1 Siege Activations . | . . . . . . Martial Activations . | . . . . . . Shielding Activations . | . . . . . . Robots Disrupted . | . . . . . . Combat Hostiles . | . . . . . . Robots Corrupted 1 | . . . . . 1 Combat Hostiles 1 | . . . . . 1 Parts Fried 6 | . 1 1 . . 4 Impact Corruptions . | . . . . . . Robots Melted . | . . . . . . Combat Hostiles . | . . . . . . Parts Melted . | . . . . . . Heat Transferred 500 | . 50 150 . . 300 Parts Sabotaged . | . . . . . . Parts Stolen . | . . . . . . Parts Stripped . | . . . . . . Power Chain Reactions 5 | . 1 1 . . 3 Alert | -11 -10 -10 -10 -9 -8 ------- Run | Yrd Mat Min Exi Min Mat Maximum Alert Level 1 | . . . . . 1 Low Security (%) 95 | 100 100 100 . 100 92 Level 1 4 | . . . . . 7 Level 2 . | . . . . . . Level 3 . | . . . . . . Level 4 . | . . . . . . Level 5 . | . . . . . . High Security . | . . . . . . Max Security . | . . . . . . Peak Influence 272 | . 44 50 . 143 272 Initial 47 | . . 10 . . 47 Average 62 | . 18 33 . 93 72 Influence Increases 801 | . 69 54 . 223 455 Destroy 0b10 Robot/C 480 | . 40 40 . 160 240 Destroy 0b10 Robot/NC 20 | . . . . . 20 Destroy Leader 102 | . 10 10 . 20 62 Allied During Kill 16 | . . . . 13 3 Disable Machine 45 | . . . . . 45 Destroy Structure 18 | . 4 4 . . 10 Partial Spotted 45 | . . . . 30 15 Lose Combat Pursuer 75 | . 15 . . . 60 Influence Decreases 547 | . 40 69 14 100 324 Entered New Map 109 | . . 19 14 . 76 Time Decay 396 | . 40 50 . 80 226 Lost Part 10 | . . . . . 10 Lost Ally 32 | . . . . 20 12 Squads Dispatched 4 | . . . . . 4 Investigation 1 | . . . . . 1 Extermination . | . . . . . . Reinforcement 3 | . . . . . 3 Assault . | . . . . . . Garrison . | . . . . . . Intercept . | . . . . . . Searches Triggered . | . . . . . . Construction Impeded . | . . . . . . Haulers Reinforced . | . . . . . . Active Scanning Responses . | . . . . . . Cargo Convoy Interrupts . | . . . . . . Stealth | -11 -10 -10 -10 -9 -8 --------- Run | Yrd Mat Min Exi Min Mat Distress Signals 1 | . 1 . . . . Communications Jammed . | . . . . . . Distress Signals . | . . . . . . Times Spotted 44 | . 10 2 . 8 24 Peak Tracking Total 7 | . 7 2 . 3 6 Tactical Retreats 4 | . 1 . . . 3 Traps | -11 -10 -10 -10 -9 -8 ------- Run | Yrd Mat Min Exi Min Mat Traps Triggered . | . . . . . . Indirectly . | . . . . . . Trap Hack Attempts . | . . . . . . Triggered . | . . . . . . Disarmed . | . . . . . . Reprogrammed . | . . . . . . Reused . | . . . . . . Traps Extracted . | . . . . . . Installed . | . . . . . . Triggered . | . . . . . . Machines | -11 -10 -10 -10 -9 -8 ---------- Run | Yrd Mat Min Exi Min Mat Machines Disabled 3 | . . . . . 3 Max in Single Turn 1 | . . . . . 1 Machines Repaired . | . . . . . . Machines Dismantled . | . . . . . . Machines Sabotaged . | . . . . . . Overloaded Fab Kills . | . . . . . . Hacking | -11 -10 -10 -10 -9 -8 --------- Run | Yrd Mat Min Exi Min Mat Machines Accessed 2 | . 1 . 1 . . Terminals . | . . . . . . Fabricators . | . . . . . . Repair Stations 1 | . 1 . . . . Recycling Units . | . . . . . . Scanalyzers . | . . . . . . Garrison Access . | . . . . . . Total Hacks 2 | . 1 . 1 . . Successful 2 | . 1 . 1 . . Failed . | . . . . . . Catastrophic . | . . . . . . Database Lockouts . | . . . . . . Manual 1 | . . . 1 . . Terminals . | . . . . . . Fabricators . | . . . . . . Repair Stations 1 | . 1 . . . . Recycling Units . | . . . . . . Scanalyzers . | . . . . . . Garrison Access . | . . . . . . Terminal Hacks 1 | . . . 1 . . Proto ID Catalog 1 | . . . 1 . . Fabricator Hacks . | . . . . . . Repair Station Hacks 1 | . 1 . . . . Refit 1 | . 1 . . . . Recycling Unit Hacks . | . . . . . . Scanalyzer . | . . . . . . Garrison Access Hacks . | . . . . . . Unauthorized Hacks . | . . . . . . Terminals . | . . . . . . Fabricators . | . . . . . . Repair Stations . | . . . . . . Recycling Units . | . . . . . . Scanalyzers . | . . . . . . Garrison Access . | . . . . . . Data Cores Recovered . | . . . . . . Used . | . . . . . . Hacking Detections . | . . . . . . Full Trace Events . | . . . . . . Feedback Events . | . . . . . . Feedback Blocked . | . . . . . . Robot Schematics Acquired . | . . . . . . Robots Built . | . . . . . . Authchips . | . . . . . . Time . | . . . . . . Total Robot Build Rating . | . . . . . . Part Schematics Acquired . | . . . . . . Parts Built . | . . . . . . Authchips . | . . . . . . Time . | . . . . . . Total Part Build Rating . | . . . . . . Parts Repaired . | . . . . . . Time . | . . . . . . Parts Recycled . | . . . . . . Recycled Matter . | . . . . . . Retrieved Matter . | . . . . . . Retrieved Components . | . . . . . . Parts Scanalyzed . | . . . . . . Part Schematics Acquired . | . . . . . . Parts Damaged . | . . . . . . Bothacking | -11 -10 -10 -10 -9 -8 ------------ Run | Yrd Mat Min Exi Min Mat Used RIF Installer . | . . . . . . Robots Hacked . | . . . . . . Non-combat . | . . . . . . Combat . | . . . . . . Robot Hacks Applied . | . . . . . . Relay Couplers Released . | . . . . . . Fabnet Peak Effective % . | . . . . . . Robots Rewired . | . . . . . . Allies Hacked . | . . . . . . Hacks Repelled . | . . . . . . Allies | -11 -10 -10 -10 -9 -8 -------- Run | Yrd Mat Min Exi Min Mat Total Allies 3 | . . 3 . . . Largest Group 3 | . . 3 2 2 1 Highest-Rated Group 40 | . . 40 24 24 8 Highest-Rated Ally 16 | . . 16 16 16 8 Total Orders . | . . . . . . Ally Attacks 43 | . . . . 30 13 Total Damage 378 | . . . . 290 88 Kills 4 | . . . . 4 . Allies Corrupted . | . . . . . . Allies Melted . | . . . . . . Intel | -11 -10 -10 -10 -9 -8 ------- Run | Yrd Mat Min Exi Min Mat Active Infowar (turns) . | . . . . . . Robot Analysis Total . | . . . . . . Derelict Logs Recovered 1 | . . 1 . . . Drone Launches . | . . . . . . Drone Recoveries . | . . . . . . Exploration | -11 -10 -10 -10 -9 -8 ------------- Run | Yrd Mat Min Exi Min Mat Turns Passed 1118 | 32 114 113 163 173 523 Spaces Moved 1264 | 54 186 87 219 195 523 Core 89 | 54 35 . . . . Treads . | . . . . . . Legs . | . . . . . . Wheels . | . . . . . . Hover . | . . . . . . Flight 1175 | . 151 87 219 195 523 Fastest Speed 32 | 50 40 40 40 37 32 Average Speed 38 | 50 41 40 40 37 34 Slowest Speed 50 | 50 50 40 40 40 37 Overloaded Moves . | . . . . . . Propulsion Burnouts . | . . . . . . Robots Hopped 8 | . 2 1 . 1 4 Potential Cave-ins . | . . . . . . Cave-ins Triggered . | . . . . . . Exploration Rate (%) 29 | 3 28 18 62 26 38 Regions Visited 5 Branch Regions 3 Pre-discovered Areas . | . . . . . . Known Exits Taken . | . . . . . . Unknown Exits Taken 5 | 1 1 1 1 1 . Scrap Searched 1 | . . . . 1 . Spaces Dug . | . . . . . . Terrain Destroyed 16 | . 3 4 . . 9 Melee . | . . . . . . Projectile . | . . . . . . AOE 16 | . 3 4 . . 9 Terrain Rammed . | . . . . . . Walls Destroyed . | . . . . . . Machines Disabled . | . . . . . . Actions | -11 -10 -10 -10 -9 -8 --------- Run | Yrd Mat Min Exi Min Mat Total 1724 | 57 207 148 293 263 756 Wait 304 | . . 33 74 32 165 Move 1243 | 53 181 84 218 192 515 Hop 8 | . 2 1 . 1 4 Pick Up 7 | 1 . 2 1 3 . Fast Attach 11 | 2 1 . . 3 5 Attach 2 | . 1 1 . . . Detach 3 | 1 2 . . . . Swap 6 | . . . . 2 4 Drop 9 | . 2 1 . 4 2 Fire 95 | . 13 16 . 15 51 Melee . | . . . . . . Ram . | . . . . . . Kick . | . . . . . . Crush . | . . . . . . Escape Stasis . | . . . . . . Rewire . | . . . . . . Trap . | . . . . . . Miscellaneous 36 | . 5 10 . 11 10 Route ------- -11/Scrapyard -10/Materials -10/Mines (discovered 2 exits: [*Mat] / *Exi) -10/Exiles -9/Mines -8/Materials History --------- Turn | Location | Event 2 | -11/Scrapyard | Met Revision 17 5 | -11/Scrapyard | Discovered new exit (range 15) 8 | -11/Scrapyard | Upgraded with Propulsion slot (x1) 8 | -11/Scrapyard | Upgraded with Weapon slot (x1) 33 | -11/Scrapyard | Entered Materials 121 | -10/Materials | Discovered new exit (range 8) 147 | -10/Materials | Entered Mines 187 | -10/Mines | Learned Materials stockpile data 188 | -10/Mines | Discovered new exit (range 6) 192 | -10/Mines | Assisted by bots powering up and referring to "LRC-V3" 227 | -10/Mines | Deemed a non-threat by the Exiles lab entrance 227 | -10/Mines | Discovered new exit (range 5) 260 | -10/Mines | Entered Exiles 260 | -10/Exiles | Accompanied by 2 allies 271 | -10/Exiles | Met 8R-AWN 277 | -10/Exiles | Met EX-HEX 292 | -10/Exiles | Met EX-BIN 297 | -10/Exiles | Aligned with FarCom system 297 | -10/Exiles | Given EX-Vault access code 307 | -10/Exiles | Opened EX-Vault 310 | -10/Exiles | Found Field Lobotomy Kit 311 | -10/Exiles | Build established: Mutant 319 | -10/Exiles | Warned to stay clear of 0b10 Research branches 330 | -10/Exiles | Met EX-DEC 345 | -10/Exiles | Discovered new exit (range 10) 423 | -10/Exiles | Left Exiles lab with Field Lobotomy Kit 423 | -10/Exiles | Entered Mines 423 | -9/Mines | Accompanied by 2 allies 425 | -9/Mines | Reached level 2 440 | -9/Mines | Upgraded with Utility slot (x2) 524 | -9/Mines | Discovered new exit (range 3) 596 | -9/Mines | Entered Materials 596 | -8/Materials | Accompanied by 1 ally 598 | -8/Materials | Reached level 3 604 | -8/Materials | Upgraded with Utility slot (x1) 790 | -8/Materials | Reached level 4 995 | -8/Materials | Upgraded with Weapon slot (x2) 1047 | -8/Materials | Core integrity fell below 50% 1101 | -8/Materials | Core integrity fell below 20% 1114 | -8/Materials | Reached level 5 1118 | -8/Materials | Build established: Sprinter 1119 | -8/Materials | Destroyed by Y-45 Defender with Beam Rifle Last Messages --------------- 01045_ Hvy. EM Pulse Gun severed. 01045_ U-05 Engineer lays Concrete. 01046_ Penetrated by Slug. 01047_ U-05 Engineer lays Concrete. 01048_ Acquired 2 matter. 01049_ U-05 Engineer lays Concrete. 01058_ Overheating: Energy bleed (-8). 01068_ Blade Saw fried. 01068_ C-17 Slicer destroyed. 01078_ Matter Filter disabled. 01078_ Slug penetrates Wall. 01083_ C-17 Slicer destroyed. 01084_ Slug penetrates Wall. 01086_ Acquired 3 matter. 01087_ Slug penetrates Wall. 01105_ Y-45 Defender destroyed. 01107_ Penetrated by Slug. 01114_ Reached level 5. 01114_ H-55 Commando destroyed. 01116_ Lgt. Ion Engine destroyed. Map ----- +----------------------------------------------------+ | ??????# #????????????????????????????!?? | | ####### """ #??????????????????????????????? | | # """ #??????????????????????????????? | | """ # """ #??????????????????????????????? | | """ # #??????????????????????????????? | | """ # ####+###########???????????????? | | ?? ????????? | | """ ????????? | | """ ????????? | | """ " """"" " """"" "##????????? | | """"""""" """""""" " ????????? | | #+#### """ """ """ """ #*?????????? | | # #### #??????????? | | % #??????????? | | % ww % #??????????? | | [ [ #### ###????????? | | #+###### ##########/##### ""#???????? | | ???????# ###### /%= ## ==! T"#???????? | | ???????# # # =%%"""## == ""#???????? | | ???????# # ! # %""""#" ###??#????? | | ???????# " *% # """""#T #????# | | ??[????# #### / # """""#" %% #????? """ | | ???????# #??# # ["""""## ##????? """ | | ???????# #??######=%="""""## #??????""" | | ???????# #???????#!*="""%"# #??????? | | ???????# ????????#!!!Y[[%@# " "" #########+# | | ??????? ????????########## "R"" | | ??????? ?????????????????## """ | | ??????? ??????????????????# ########## | | ???????# ??????????????????# #????????# | | ???????? ??????????????????# #????????# """ " | | ???????? ??????????????????# #????????# """"" "" | | ?????????????????########??# #????????# """"" "" | | ?????????????????# #??# #????????# """"" "" | | ?????????????????# T ####%#????????# =="" " | | ?????????????????# # |%*#???????## [%[ | | ?????????????????# # =#???????## *%! | | ?????????????????# # #???????## " " | | ?????????????????# / #???????## """ "" | | ?????????????????###+#### #?######## = """ "" | | ?????????????????# ## #?# #=% """ "" | | ?????????????????# ## #?# """ =#!* """ " | | ?????????????????# " ## #?# """ !+ | | ?????????????????# ## #?# """ #= | | ?????????????????# ## #?# # ### | | ?????????????????### ####+##+#?# ##########?? | | ???????????????????# #?????????########??????????? | | ???????????????????# #???????????????????????????? | | ???????????????????# #???????????????????????????? | | ???????????????????# #???????????????????????????? | +----------------------------------------------------+ Best States ------------- Heat Dissipation 25 Energy Generation 10 Energy Capacity 125 Matter Stores 300 Matter Capacity 300 Sight Range 16 Terrain Scan Density 10 Armor Coverage 80 Evasion (%) 63 Offensive Hacking 10 Item Schematics ----------------- None Robot Schematics ------------------ None Fabricated ------------ Nothing Repaired ---------- Nothing Alien Tech Used ----------------- None Achievements -------------- None Challenges ------------ None RPGLIKE | -11 -10 -10 -10 -9 -8 --------- Run | Yrd Mat Min Exi Min Mat Levels Raised 4 | . . . . 1 3 XP Earned 9013 | 3000 250 750 350 1438 3225 XP Spent 6900 | 2500 . 100 . 1300 3000 Upgrades 11 | 5 . 1 . 2 3 Propulsion Slot 1 | 1 . . . . . Utility Slot 3 | . . . . 2 1 Weapon Slot 3 | 1 . . . . 2 Mass Support 1 | . . 1 . . . Inventory Capacity 3 | 3 . . . . . Protomatter Created 403 | . 77 85 . 51 190 Integrity Restored 703 | . 117 211 . 184 191 Core 559 | . 117 136 . 122 184 Parts 144 | . . 75 . 62 7 Protomatter Decayed 84 | . . . . 51 33 Game ------ Seed ChainRiotMeganuke Manual? 0 Play Time 00:19:15 Cumulative 232.0 hours Start 2025.05.31 @ 20:55:27 End 2025.06.01 @ 14:10:46 Sessions 4 Manual Loads 0 Difficulty Rogue Special Mode Winter2019/RPGLIKE Game No. 230 Rogue 41 Adventurer 177 Explorer 12 Win Type - Total 63 Types 18/1/16/2/12/0/4/5/0/5 Lore% 51 Gallery% 51 Achievement% 69 Wizard Run 0 Options --------- Layout 0 ASCII 0 Keyboard 0 Movement Mouse Keybinds 0 Fullscreen 2 Font 12/Smallcaps Map View 83x54 Zoom Use 0% Tactical HUD 1 Map Filters NONE Filters NONE Steam X RUN: 50c37840-1afd-4be0-9bef-eef1731bb846